[Event "Titled Tuesday Blitz July 11 Late 2023"]
[White "He, Anthony"]
[Black "Ter-Sahakyan, Samvel"]
[WhiteFideId "2088215"]
[BlackFideId "13302531"]
[WhiteElo "2972"]
[BlackElo "2844"]
[Result "1/2-1/2"]
[Round "11"]
[TimeControl "180+2"]
[Date "2023.07.11"]
[WhiteClock "0:00:06"]
[BlackClock "0:00:06"]
[Board "11"]

1. e4 {[%clk 0:03:00]}  c5 {[%clk 0:03:00]} 2. Ne2 {[%clk 0:03:00]}  Nc6 {[%clk 0:02:58]} 3. g3 {[%clk 0:03:00]}  d5 {[%clk 0:02:57]} 4. Bg2 {[%clk 0:03:00]}  dxe4 {[%clk 0:02:55]} 5. Bxe4 {[%clk 0:03:01]}  Nf6 {[%clk 0:02:56]} 6. Bg2 {[%clk 0:03:01]}  g6 {[%clk 0:02:53]} 7. O-O {[%clk 0:03:01]}  Bg7 {[%clk 0:02:53]} 8. Nbc3 {[%clk 0:02:59]}  O-O {[%clk 0:02:53]} 9. d3 {[%clk 0:02:58]}  Nd4 {[%clk 0:02:52]} 10. h3 {[%clk 0:02:58]}  Bd7 {[%clk 0:02:47]} 11. Be3 {[%clk 0:02:47]}  Bc6 {[%clk 0:02:45]} 12. Bxc6 {[%clk 0:02:45]}  bxc6 {[%clk 0:02:44]} 13. Bxd4 {[%clk 0:02:22]}  cxd4 {[%clk 0:02:44]} 14. Na4 {[%clk 0:02:23]}  e5 {[%clk 0:02:36]} 15. Qd2 {[%clk 0:02:19]}  Nd5 {[%clk 0:02:28]} 16. Rae1 {[%clk 0:02:16]}  Qc7 {[%clk 0:02:20]} 17. Nc1 {[%clk 0:02:15]}  Rae8 {[%clk 0:02:12]} 18. Nb3 {[%clk 0:02:10]}  f5 {[%clk 0:02:12]} 19. Nac5 {[%clk 0:02:08]}  h5 {[%clk 0:02:06]} 20. h4 {[%clk 0:02:07]}  Kh7 {[%clk 0:02:05]} 21. Kg2 {[%clk 0:01:54]}  Qf7 {[%clk 0:01:49]} 22. c4 {[%clk 0:01:42]}  dxc3 {[%clk 0:01:32]} 23. bxc3 {[%clk 0:01:43]}  e4 {[%clk 0:01:24]} 24. d4 {[%clk 0:01:43]}  Bh6 {[%clk 0:01:19]} 25. Qc2 {[%clk 0:01:37]}  e3 {[%clk 0:01:15]} 26. c4 {[%clk 0:01:21]}  Nf6 {[%clk 0:00:30]} 27. fxe3 {[%clk 0:01:16]}  Bxe3 {[%clk 0:00:25]} 28. Re2 {[%clk 0:01:05]}  Ng4 {[%clk 0:00:25]} 29. Rf3 {[%clk 0:00:48]}  Bh6 {[%clk 0:00:25]} 30. Kg1 {[%clk 0:00:39]}  Rxe2 {[%clk 0:00:24]} 31. Qxe2 {[%clk 0:00:40]}  Re8 {[%clk 0:00:25]} 32. Qd3 {[%clk 0:00:36]}  Qe7 {[%clk 0:00:21]} 33. Rf1 {[%clk 0:00:23]}  Qd6 {[%clk 0:00:19]} 34. Rf3 {[%clk 0:00:13]}  Re1+ {[%clk 0:00:18]} 35. Kg2 {[%clk 0:00:12]}  Be3 {[%clk 0:00:18]} 36. Rf1 {[%clk 0:00:11]}  Rxf1 {[%clk 0:00:16]} 37. Qxf1 {[%clk 0:00:11]}  Bxd4 {[%clk 0:00:17]} 38. Nb7 {[%clk 0:00:07]}  Qe7 {[%clk 0:00:12]} 39. Qd3 {[%clk 0:00:06]}  Bf6 {[%clk 0:00:02]} 40. N7c5 {[%clk 0:00:04]}  Qe1 {[%clk 0:00:02]} 41. Qd2 {[%clk 0:00:02]}  Ne3+ {[%clk 0:00:01]} 42. Kf3 {[%clk 0:00:03]}  Qxd2 {[%clk 0:00:01]} 43. Nxd2 {[%clk 0:00:04]}  Nc2 {[%clk 0:00:02]} 44. Nd7 {[%clk 0:00:03]}  Bg7 {[%clk 0:00:01]} 45. Nb8 {[%clk 0:00:04]}  Nb4 {[%clk 0:00:02]} 46. a3 {[%clk 0:00:04]}  Nc2 {[%clk 0:00:02]} 47. Nxc6 {[%clk 0:00:04]}  Nxa3 {[%clk 0:00:02]} 48. Nxa7 {[%clk 0:00:05]}  Bc3 {[%clk 0:00:02]} 49. Ke2 {[%clk 0:00:03]}  Bxd2 {[%clk 0:00:02]} 50. Kxd2 {[%clk 0:00:04]}  Nxc4+ {[%clk 0:00:02]} 51. Kd3 {[%clk 0:00:05]}  Nd6 {[%clk 0:00:02]} 52. Nc6 {[%clk 0:00:05]}  Ne4 {[%clk 0:00:03]} 53. Ke3 {[%clk 0:00:05]}  Nxg3 {[%clk 0:00:03]} 54. Kf4 {[%clk 0:00:05]}  Ne4 {[%clk 0:00:03]} 55. Ne5 {[%clk 0:00:05]}  Kh6 {[%clk 0:00:03]} 56. Nf7+ {[%clk 0:00:06]}  Kg7 {[%clk 0:00:03]} 57. Ne5 {[%clk 0:00:07]}  Nc5 {[%clk 0:00:03]} 58. Kf3 {[%clk 0:00:06]}  Ne6 {[%clk 0:00:03]} 59. Nd3 {[%clk 0:00:06]}  Kf6 {[%clk 0:00:04]} 60. Nf2 {[%clk 0:00:06]}  Nd4+ {[%clk 0:00:04]} 61. Kf4 {[%clk 0:00:07]}  Ne6+ {[%clk 0:00:04]} 62. Kf3 {[%clk 0:00:07]}  Nc5 {[%clk 0:00:04]} 63. Nh3 {[%clk 0:00:07]}  Nd3 {[%clk 0:00:05]} 64. Ke3 {[%clk 0:00:07]}  Ne5 {[%clk 0:00:05]} 65. Kf4 {[%clk 0:00:07]}  Nf7 {[%clk 0:00:04]} 66. Nf2 {[%clk 0:00:08]}  Nd8 {[%clk 0:00:04]} 67. Nd3 {[%clk 0:00:08]}  Ne6+ {[%clk 0:00:04]} 68. Kf3 {[%clk 0:00:08]}  g5 {[%clk 0:00:05]} 69. hxg5+ {[%clk 0:00:09]}  Kxg5 {[%clk 0:00:05]} 70. Nf2 {[%clk 0:00:08]}  f4 {[%clk 0:00:05]} 71. Ne4+ {[%clk 0:00:07]}  Kg6 {[%clk 0:00:05]} 72. Nd6 {[%clk 0:00:07]}  Kf6 {[%clk 0:00:05]} 73. Ke4 {[%clk 0:00:05]}  h4 {[%clk 0:00:04]} 74. Kf3 {[%clk 0:00:04]}  Kg5 {[%clk 0:00:05]} 75. Ne4+ {[%clk 0:00:04]}  Kf5 {[%clk 0:00:05]} 76. Nd6+ {[%clk 0:00:04]}  Ke5 {[%clk 0:00:06]} 77. Nf7+ {[%clk 0:00:04]}  Kf6 {[%clk 0:00:06]} 78. Nd6 {[%clk 0:00:04]}  Kg5 {[%clk 0:00:06]} 79. Ne4+ {[%clk 0:00:04]}  Kh5 {[%clk 0:00:06]} 80. Nf6+ {[%clk 0:00:04]}  Kg6 {[%clk 0:00:06]} 81. Ne4 {[%clk 0:00:03]}  Ng5+ {[%clk 0:00:04]} 82. Kxf4 {[%clk 0:00:03]}  Nxe4 {[%clk 0:00:04]} 83. Kxe4 {[%clk 0:00:04]}  Kg5 {[%clk 0:00:05]} 84. Kf3 {[%clk 0:00:05]}  h3 {[%clk 0:00:05]} 85. Kg3 {[%clk 0:00:05]}  h2 {[%clk 0:00:06]} 86. Kxh2 {[%clk 0:00:06]} 1/2-1/2


[Site "https://www.chess.com"]

[Event "Titled Tuesday Blitz July 11 Late 2023"]
[White "Ovchinnikov, Vsevolod"]
[Black "Makarian, Rudik"]
[WhiteFideId "24176842"]
[BlackFideId "44105681"]
[WhiteElo "2656"]
[BlackElo "2940"]
[Result "0-1"]
[Round "11"]
[TimeControl "180+2"]
[Date "2023.07.11"]
[WhiteClock "0:00:00"]
[BlackClock "0:00:42"]
[Board "13"]

1. d4 {[%clk 0:03:00]}  Nf6 {[%clk 0:02:59]} 2. c4 {[%clk 0:03:00]}  e6 {[%clk 0:03:00]} 3. g3 {[%clk 0:03:01]}  d5 {[%clk 0:03:01]} 4. Bg2 {[%clk 0:03:01]}  Bb4+ {[%clk 0:03:00]} 5. Bd2 {[%clk 0:03:01]}  Be7 {[%clk 0:02:59]} 6. Nf3 {[%clk 0:02:56]}  O-O {[%clk 0:03:00]} 7. O-O {[%clk 0:02:56]}  c6 {[%clk 0:03:00]} 8. Qc2 {[%clk 0:02:56]}  Nbd7 {[%clk 0:03:00]} 9. Bf4 {[%clk 0:02:49]}  a5 {[%clk 0:02:58]} 10. Nbd2 {[%clk 0:02:50]}  Nh5 {[%clk 0:02:58]} 11. Be3 {[%clk 0:02:50]}  b6 {[%clk 0:02:57]} 12. Rac1 {[%clk 0:02:38]}  Ba6 {[%clk 0:02:56]} 13. Ne1 {[%clk 0:02:35]}  Rc8 {[%clk 0:02:55]} 14. Nd3 {[%clk 0:02:31]}  Nhf6 {[%clk 0:02:52]} 15. b3 {[%clk 0:02:24]}  c5 {[%clk 0:02:45]} 16. Qb1 {[%clk 0:02:03]}  Ng4 {[%clk 0:02:35]} 17. cxd5 {[%clk 0:01:46]}  Nxe3 {[%clk 0:02:33]} 18. fxe3 {[%clk 0:01:47]}  Bg5 {[%clk 0:02:31]} 19. Nf4 {[%clk 0:01:40]}  e5 {[%clk 0:02:23]} 20. dxe5 {[%clk 0:01:36]}  Nxe5 {[%clk 0:02:24]} 21. Nc4 {[%clk 0:01:13]}  Re8 {[%clk 0:02:21]} 22. e4 {[%clk 0:01:00]}  b5 {[%clk 0:02:10]} 23. Nxe5 {[%clk 0:00:47]}  Rxe5 {[%clk 0:02:10]} 24. Rc2 {[%clk 0:00:43]}  c4 {[%clk 0:02:02]} 25. bxc4 {[%clk 0:00:42]}  bxc4 {[%clk 0:02:00]} 26. h4 {[%clk 0:00:19]}  Bf6 {[%clk 0:01:54]} 27. Qe1 {[%clk 0:00:16]}  Rb8 {[%clk 0:01:40]} 28. Kh2 {[%clk 0:00:16]}  Be7 {[%clk 0:01:22]} 29. Qf2 {[%clk 0:00:11]}  Bd6 {[%clk 0:01:18]} 30. Qd4 {[%clk 0:00:05]}  Qe7 {[%clk 0:01:15]} 31. Bf3 {[%clk 0:00:05]}  g6 {[%clk 0:01:14]} 32. Kg2 {[%clk 0:00:05]}  Rb4 {[%clk 0:01:10]} 33. Rfc1 {[%clk 0:00:03]}  a4 {[%clk 0:01:07]} 34. Rc3 {[%clk 0:00:03]}  Rb2 {[%clk 0:01:04]} 35. R3c2 {[%clk 0:00:03]}  Rb8 {[%clk 0:00:58]} 36. Qd1 {[%clk 0:00:02]}  Rxe4 {[%clk 0:00:52]} 37. Rd2 {[%clk 0:00:01]}  Re3 {[%clk 0:00:49]} 38. Rd4 {[%clk 0:00:01]}  Rb2 {[%clk 0:00:47]} 39. Rc2 {[%clk 0:00:02]}  a3 {[%clk 0:00:47]} 40. Rdd2 {[%clk 0:00:02]}  c3 {[%clk 0:00:47]} 41. Rd4 {[%clk 0:00:01]}  Bxf4 {[%clk 0:00:45]} 42. Rxf4 {[%clk 0:00:01]}  Bxe2 {[%clk 0:00:43]} 43. Bxe2 {[%clk 0:00:01]}  Rxc2 {[%clk 0:00:43]} 44. Rf2 {[%clk 0:00:00]}  Rcxe2 {[%clk 0:00:42]} 0-1


[Site "https://www.chess.com"]

[Event "Titled Tuesday Blitz July 11 Late 2023"]
[White "Grigoriants, Sergey"]
[Black "Chen, Max"]
[WhiteFideId "4130804"]
[BlackFideId "2622440"]
[WhiteElo "2919"]
[BlackElo "2638"]
[Result "1-0"]
[Round "11"]
[TimeControl "180+2"]
[Date "2023.07.11"]
[WhiteClock "0:00:08"]
[BlackClock "0:00:02"]
[Board "15"]

1. d4 {[%clk 0:03:00]}  Nf6 {[%clk 0:03:00]} 2. c4 {[%clk 0:03:00]}  b6 {[%clk 0:03:00]} 3. f3 {[%clk 0:02:59]}  Nc6 {[%clk 0:02:59]} 4. e4 {[%clk 0:02:59]}  e5 {[%clk 0:02:59]} 5. dxe5 {[%clk 0:02:57]}  Nxe5 {[%clk 0:02:58]} 6. Nc3 {[%clk 0:02:51]}  Bb4 {[%clk 0:02:52]} 7. Ne2 {[%clk 0:02:36]}  d6 {[%clk 0:02:47]} 8. Qa4+ {[%clk 0:02:34]}  Bd7 {[%clk 0:02:45]} 9. Qc2 {[%clk 0:02:30]}  Nxc4 {[%clk 0:02:40]} 10. Qb3 {[%clk 0:02:24]}  Ne5 {[%clk 0:02:38]} 11. Nf4 {[%clk 0:02:23]}  a5 {[%clk 0:02:32]} 12. Be2 {[%clk 0:02:19]}  Bc5 {[%clk 0:02:16]} 13. Bd2 {[%clk 0:02:14]}  a4 {[%clk 0:02:01]} 14. Qc2 {[%clk 0:02:13]}  Nc6 {[%clk 0:01:58]} 15. Ncd5 {[%clk 0:02:07]}  Nd4 {[%clk 0:01:55]} 16. Qc3 {[%clk 0:02:04]}  c6 {[%clk 0:01:42]} 17. Nxf6+ {[%clk 0:01:51]}  Qxf6 {[%clk 0:01:42]} 18. Nd3 {[%clk 0:01:51]}  Nxe2 {[%clk 0:01:26]} 19. Qxf6 {[%clk 0:01:47]}  gxf6 {[%clk 0:01:26]} 20. Kxe2 {[%clk 0:01:39]}  Bd4 {[%clk 0:01:26]} 21. Rac1 {[%clk 0:01:34]}  c5 {[%clk 0:01:26]} 22. Bc3 {[%clk 0:01:35]}  Bxc3 {[%clk 0:01:25]} 23. bxc3 {[%clk 0:01:35]}  b5 {[%clk 0:01:21]} 24. a3 {[%clk 0:01:35]}  Be6 {[%clk 0:01:20]} 25. Ke3 {[%clk 0:01:35]}  Kd7 {[%clk 0:01:20]} 26. g4 {[%clk 0:01:32]}  Rab8 {[%clk 0:01:18]} 27. Rb1 {[%clk 0:01:22]}  Kc6 {[%clk 0:01:17]} 28. Nf4 {[%clk 0:01:20]}  Rb7 {[%clk 0:01:10]} 29. Nh5 {[%clk 0:01:18]}  Rhb8 {[%clk 0:01:07]} 30. Nxf6 {[%clk 0:01:18]}  h6 {[%clk 0:01:07]} 31. h4 {[%clk 0:01:17]}  b4 {[%clk 0:01:07]} 32. cxb4 {[%clk 0:01:17]}  Kc7 {[%clk 0:00:53]} 33. Rbc1 {[%clk 0:01:07]}  Kd8 {[%clk 0:00:48]} 34. bxc5 {[%clk 0:01:07]}  Rb3+ {[%clk 0:00:39]} 35. Kf4 {[%clk 0:01:07]}  dxc5 {[%clk 0:00:36]} 36. Rxc5 {[%clk 0:01:06]}  Rxa3 {[%clk 0:00:36]} 37. Rd1+ {[%clk 0:00:40]}  Ke7 {[%clk 0:00:36]} 38. Nd5+ {[%clk 0:00:37]}  Bxd5 {[%clk 0:00:26]} 39. Rcxd5 {[%clk 0:00:38]}  Rbb3 {[%clk 0:00:26]} 40. Rf1 {[%clk 0:00:29]}  Rd3 {[%clk 0:00:23]} 41. Rxd3 {[%clk 0:00:24]}  Rxd3 {[%clk 0:00:23]} 42. Rb1 {[%clk 0:00:25]}  a3 {[%clk 0:00:22]} 43. Rb7+ {[%clk 0:00:24]}  Kf6 {[%clk 0:00:22]} 44. Ra7 {[%clk 0:00:25]}  Rb3 {[%clk 0:00:21]} 45. Ra6+ {[%clk 0:00:19]}  Kg7 {[%clk 0:00:21]} 46. e5 {[%clk 0:00:15]}  Rc3 {[%clk 0:00:18]} 47. h5 {[%clk 0:00:15]}  Rb3 {[%clk 0:00:18]} 48. Ke4 {[%clk 0:00:15]}  Rb4+ {[%clk 0:00:18]} 49. Kf5 {[%clk 0:00:15]}  Rb3 {[%clk 0:00:18]} 50. f4 {[%clk 0:00:15]}  Rf3 {[%clk 0:00:18]} 51. Ra7 {[%clk 0:00:15]}  Kg8 {[%clk 0:00:17]} 52. g5 {[%clk 0:00:10]}  hxg5 {[%clk 0:00:17]} 53. Kxg5 {[%clk 0:00:10]}  Rg3+ {[%clk 0:00:17]} 54. Kf6 {[%clk 0:00:10]}  Rf3 {[%clk 0:00:16]} 55. f5 {[%clk 0:00:10]}  Kh7 {[%clk 0:00:09]} 56. Rxf7+ {[%clk 0:00:10]}  Kh6 {[%clk 0:00:10]} 57. Ra7 {[%clk 0:00:10]}  Kxh5 {[%clk 0:00:09]} 58. e6 {[%clk 0:00:11]}  Kg4 {[%clk 0:00:10]} 59. Ra4+ {[%clk 0:00:10]}  Rf4 {[%clk 0:00:09]} 60. Ra5 {[%clk 0:00:09]}  a2 {[%clk 0:00:07]} 61. Rxa2 {[%clk 0:00:07]}  Rxf5+ {[%clk 0:00:07]} 62. Ke7 {[%clk 0:00:08]}  Re5 {[%clk 0:00:06]} 63. Rf2 {[%clk 0:00:06]}  Kg5 {[%clk 0:00:05]} 64. Kd7 {[%clk 0:00:06]}  Rd5+ {[%clk 0:00:04]} 65. Kc6 {[%clk 0:00:06]}  Re5 {[%clk 0:00:05]} 66. Kd6 {[%clk 0:00:06]}  Re1 {[%clk 0:00:05]} 67. Rf8 {[%clk 0:00:06]}  Kg6 {[%clk 0:00:04]} 68. e7 {[%clk 0:00:06]}  Rd1+ {[%clk 0:00:03]} 69. Kc5 {[%clk 0:00:07]}  Rc1+ {[%clk 0:00:03]} 70. Kb4 {[%clk 0:00:07]}  Rb1+ {[%clk 0:00:03]} 71. Kc3 {[%clk 0:00:07]}  Rg1 {[%clk 0:00:02]} 72. e8=Q+ {[%clk 0:00:07]}  Kh6 {[%clk 0:00:03]} 73. Rh8+ {[%clk 0:00:07]}  Kg5 {[%clk 0:00:03]} 74. Qg8+ {[%clk 0:00:06]}  Kf4 {[%clk 0:00:03]} 75. Qxg1 {[%clk 0:00:06]}  Kf5 {[%clk 0:00:02]} 76. Rf8+ {[%clk 0:00:06]}  Ke6 {[%clk 0:00:02]} 77. Qg6+ {[%clk 0:00:06]}  Ke7 {[%clk 0:00:02]} 78. Rf7+ {[%clk 0:00:07]}  Ke8 {[%clk 0:00:02]} 79. Qg8# {[%clk 0:00:08]} 1-0


[Site "https://www.chess.com"]

[Event "Titled Tuesday Blitz July 11 Late 2023"]
[White "Jaferian, Koosha"]
[Black "Andreikin, Dmitry"]
[WhiteFideId "12507440"]
[BlackFideId "4158814"]
[WhiteElo "2712"]
[BlackElo "2992"]
[Result "0-1"]
[Round "11"]
[TimeControl "180+2"]
[Date "2023.07.11"]
[WhiteClock "0:00:02"]
[BlackClock "0:01:25"]
[Board "20"]

1. e4 {[%clk 0:03:00]}  a6 {[%clk 0:03:00]} 2. d4 {[%clk 0:02:58]}  b5 {[%clk 0:03:01]} 3. a4 {[%clk 0:02:57]}  Bb7 {[%clk 0:03:00]} 4. Bd3 {[%clk 0:02:55]}  Nf6 {[%clk 0:02:58]} 5. Qe2 {[%clk 0:02:53]}  bxa4 {[%clk 0:02:57]} 6. Rxa4 {[%clk 0:02:52]}  e6 {[%clk 0:02:58]} 7. Bg5 {[%clk 0:02:49]}  Be7 {[%clk 0:02:57]} 8. Nd2 {[%clk 0:02:44]}  h6 {[%clk 0:02:55]} 9. Bh4 {[%clk 0:02:44]}  c5 {[%clk 0:02:52]} 10. Ngf3 {[%clk 0:02:38]}  cxd4 {[%clk 0:02:52]} 11. Nxd4 {[%clk 0:02:38]}  Nc6 {[%clk 0:02:50]} 12. Nxc6 {[%clk 0:02:27]}  Bxc6 {[%clk 0:02:51]} 13. Rxa6 {[%clk 0:02:27]}  Rxa6 {[%clk 0:02:51]} 14. Bxa6 {[%clk 0:02:28]}  Qa5 {[%clk 0:02:30]} 15. O-O {[%clk 0:02:20]}  Nxe4 {[%clk 0:02:31]} 16. Nxe4 {[%clk 0:02:05]}  Bxh4 {[%clk 0:02:30]} 17. Nd6+ {[%clk 0:02:05]}  Ke7 {[%clk 0:02:28]} 18. Rd1 {[%clk 0:01:49]}  Rb8 {[%clk 0:02:27]} 19. b3 {[%clk 0:01:26]}  Bf6 {[%clk 0:02:26]} 20. Bc4 {[%clk 0:01:21]}  Qe5 {[%clk 0:02:24]} 21. Qd2 {[%clk 0:01:07]}  Ra8 {[%clk 0:02:22]} 22. Nb5 {[%clk 0:00:39]}  Ra1 {[%clk 0:02:10]} 23. Qb4+ {[%clk 0:00:28]}  d6 {[%clk 0:02:10]} 24. Rxa1 {[%clk 0:00:25]}  Qxa1+ {[%clk 0:02:08]} 25. Bf1 {[%clk 0:00:26]}  Be5 {[%clk 0:01:49]} 26. f4 {[%clk 0:00:19]}  Bxb5 {[%clk 0:01:43]} 27. Qxb5 {[%clk 0:00:16]}  Qd4+ {[%clk 0:01:42]} 28. Kh1 {[%clk 0:00:16]}  Qxf4 {[%clk 0:01:42]} 29. g3 {[%clk 0:00:10]}  Qe4+ {[%clk 0:01:41]} 30. Bg2 {[%clk 0:00:11]}  Qxc2 {[%clk 0:01:41]} 31. Qb7+ {[%clk 0:00:10]}  Kf6 {[%clk 0:01:41]} 32. Qf3+ {[%clk 0:00:10]}  Qf5 {[%clk 0:01:40]} 33. Qe3 {[%clk 0:00:03]}  Qb1+ {[%clk 0:01:38]} 34. Qg1 {[%clk 0:00:02]}  Qxb3 {[%clk 0:01:30]} 35. Qf1+ {[%clk 0:00:02]}  Ke7 {[%clk 0:01:29]} 36. Qa6 {[%clk 0:00:02]}  Qb1+ {[%clk 0:01:28]} 37. Bf1 {[%clk 0:00:02]}  d5 {[%clk 0:01:26]} 38. Qb7+ {[%clk 0:00:02]}  Qxb7 {[%clk 0:01:25]} 0-1


[Site "https://www.chess.com"]

[Event "Titled Tuesday Blitz July 11 Late 2023"]
[White "Skliarov, Viktor"]
[Black "Zhigalko, Sergei"]
[WhiteFideId "14106736"]
[BlackFideId "13502956"]
[WhiteElo "2650"]
[BlackElo "2879"]
[Result "0-1"]
[Round "11"]
[TimeControl "180+2"]
[Date "2023.07.11"]
[WhiteClock "0:00:01"]
[BlackClock "0:00:04"]
[Board "21"]

1. e4 {[%clk 0:03:00]}  c5 {[%clk 0:03:00]} 2. Nf3 {[%clk 0:03:00]}  Nc6 {[%clk 0:03:00]} 3. Bb5 {[%clk 0:03:00]}  Nf6 {[%clk 0:03:01]} 4. Bxc6 {[%clk 0:03:00]}  dxc6 {[%clk 0:03:02]} 5. d3 {[%clk 0:03:00]}  Nd7 {[%clk 0:03:02]} 6. O-O {[%clk 0:03:00]}  e5 {[%clk 0:03:03]} 7. Nbd2 {[%clk 0:02:55]}  Bd6 {[%clk 0:03:00]} 8. Nc4 {[%clk 0:02:55]}  Bc7 {[%clk 0:03:01]} 9. a3 {[%clk 0:02:53]}  O-O {[%clk 0:02:56]} 10. b4 {[%clk 0:02:53]}  Re8 {[%clk 0:02:50]} 11. Bb2 {[%clk 0:02:51]}  f6 {[%clk 0:02:48]} 12. Nh4 {[%clk 0:02:38]}  b5 {[%clk 0:02:28]} 13. Ne3 {[%clk 0:02:33]}  cxb4 {[%clk 0:02:19]} 14. axb4 {[%clk 0:02:32]}  Nf8 {[%clk 0:02:19]} 15. c3 {[%clk 0:02:19]}  Bb6 {[%clk 0:02:13]} 16. Kh1 {[%clk 0:01:52]}  Be6 {[%clk 0:01:58]} 17. d4 {[%clk 0:01:33]}  Qc7 {[%clk 0:01:53]} 18. d5 {[%clk 0:01:18]}  Rad8 {[%clk 0:01:50]} 19. Qb3 {[%clk 0:01:05]}  Bf7 {[%clk 0:01:48]} 20. c4 {[%clk 0:00:56]}  bxc4 {[%clk 0:01:30]} 21. Qxc4 {[%clk 0:00:55]}  cxd5 {[%clk 0:01:19]} 22. Qxc7 {[%clk 0:00:55]}  Bxc7 {[%clk 0:01:20]} 23. Rxa7 {[%clk 0:00:23]}  Bb6 {[%clk 0:01:13]} 24. Rxf7 {[%clk 0:00:23]}  Kxf7 {[%clk 0:01:14]} 25. Nxd5 {[%clk 0:00:23]}  Rb8 {[%clk 0:00:34]} 26. Nf5 {[%clk 0:00:21]}  Red8 {[%clk 0:00:32]} 27. f3 {[%clk 0:00:12]}  Ne6 {[%clk 0:00:29]} 28. g3 {[%clk 0:00:11]}  Nc7 {[%clk 0:00:18]} 29. Nxb6 {[%clk 0:00:07]}  Rxb6 {[%clk 0:00:18]} 30. Rc1 {[%clk 0:00:04]}  Rd7 {[%clk 0:00:17]} 31. Rc4 {[%clk 0:00:04]}  Ne6 {[%clk 0:00:08]} 32. Bc3 {[%clk 0:00:05]}  Rc7 {[%clk 0:00:05]} 33. Rxc7+ {[%clk 0:00:04]}  Nxc7 {[%clk 0:00:06]} 34. Ne3 {[%clk 0:00:05]}  Rc6 {[%clk 0:00:05]} 35. Bd2 {[%clk 0:00:05]}  Ke6 {[%clk 0:00:05]} 36. Kg2 {[%clk 0:00:05]}  Rd6 {[%clk 0:00:04]} 37. Nc4 {[%clk 0:00:01]}  Rd4 {[%clk 0:00:04]} 0-1


[Site "https://www.chess.com"]

[Event "Titled Tuesday Blitz July 11 Late 2023"]
[White "Oro, Faustino"]
[Black "Pinero Rodriguez, Carlos Jose"]
[WhiteFideId "20000197"]
[BlackFideId "3901726"]
[WhiteElo "2731"]
[BlackElo "2463"]
[Result "0-1"]
[Round "11"]
[TimeControl "180+2"]
[Date "2023.07.11"]
[WhiteClock "0:00:03"]
[BlackClock "0:00:09"]
[Board "25"]

1. e4 {[%clk 0:03:00]}  c5 {[%clk 0:03:00]} 2. Nf3 {[%clk 0:02:59]}  e6 {[%clk 0:03:00]} 3. g3 {[%clk 0:02:56]}  a6 {[%clk 0:03:00]} 4. Bg2 {[%clk 0:02:56]}  Nc6 {[%clk 0:03:00]} 5. O-O {[%clk 0:02:56]}  Qc7 {[%clk 0:03:01]} 6. c4 {[%clk 0:02:54]}  Nf6 {[%clk 0:03:01]} 7. Nc3 {[%clk 0:02:52]}  Be7 {[%clk 0:03:00]} 8. d4 {[%clk 0:02:52]}  cxd4 {[%clk 0:03:00]} 9. Nxd4 {[%clk 0:02:53]}  O-O {[%clk 0:03:01]} 10. b3 {[%clk 0:02:50]}  d6 {[%clk 0:03:01]} 11. Be3 {[%clk 0:02:47]}  Bd7 {[%clk 0:03:01]} 12. h3 {[%clk 0:02:47]}  Rac8 {[%clk 0:03:00]} 13. Qd2 {[%clk 0:02:47]}  Ne5 {[%clk 0:02:59]} 14. Rac1 {[%clk 0:02:46]}  Qb8 {[%clk 0:02:58]} 15. Rfd1 {[%clk 0:02:45]}  b5 {[%clk 0:02:58]} 16. cxb5 {[%clk 0:02:36]}  axb5 {[%clk 0:02:59]} 17. f4 {[%clk 0:02:27]}  Ng6 {[%clk 0:02:59]} 18. Qd3 {[%clk 0:02:17]}  b4 {[%clk 0:02:58]} 19. Nce2 {[%clk 0:02:16]}  Rfd8 {[%clk 0:02:35]} 20. Bd2 {[%clk 0:01:54]}  Qa7 {[%clk 0:02:23]} 21. Kh2 {[%clk 0:01:48]}  Qb6 {[%clk 0:02:17]} 22. Nc2 {[%clk 0:01:37]}  Bb5 {[%clk 0:02:14]} 23. Qf3 {[%clk 0:01:33]}  d5 {[%clk 0:02:04]} 24. exd5 {[%clk 0:01:24]}  Nxd5 {[%clk 0:01:54]} 25. Ne3 {[%clk 0:01:16]}  Rxc1 {[%clk 0:01:38]} 26. Bxc1 {[%clk 0:00:49]}  Bc6 {[%clk 0:01:01]} 27. Qf2 {[%clk 0:00:39]}  Bc5 {[%clk 0:00:54]} 28. Bxd5 {[%clk 0:00:29]}  Bxd5 {[%clk 0:00:41]} 29. Ng1 {[%clk 0:00:25]}  Ba8 {[%clk 0:00:34]} 30. Rxd8+ {[%clk 0:00:20]}  Qxd8 {[%clk 0:00:34]} 31. Qe1 {[%clk 0:00:19]}  Qd3 {[%clk 0:00:22]} 32. Qe2 {[%clk 0:00:17]}  Qe4 {[%clk 0:00:21]} 33. Qg2 {[%clk 0:00:08]}  Ne7 {[%clk 0:00:12]} 34. Qxe4 {[%clk 0:00:08]}  Bxe4 {[%clk 0:00:13]} 35. Nc4 {[%clk 0:00:09]}  Nd5 {[%clk 0:00:12]} 36. a3 {[%clk 0:00:08]}  bxa3 {[%clk 0:00:12]} 37. Bxa3 {[%clk 0:00:09]}  Bf2 {[%clk 0:00:11]} 38. Ne2 {[%clk 0:00:08]}  Bd3 {[%clk 0:00:10]} 39. Nc1 {[%clk 0:00:08]}  Bc2 {[%clk 0:00:10]} 40. b4 {[%clk 0:00:07]}  h6 {[%clk 0:00:08]} 41. b5 {[%clk 0:00:07]}  g5 {[%clk 0:00:08]} 42. fxg5 {[%clk 0:00:06]}  hxg5 {[%clk 0:00:09]} 43. Bd6 {[%clk 0:00:07]}  f5 {[%clk 0:00:08]} 44. Ne2 {[%clk 0:00:04]}  Be4 {[%clk 0:00:07]} 45. Be5 {[%clk 0:00:03]}  Bd3 {[%clk 0:00:07]} 46. Bd4 {[%clk 0:00:02]}  Bxc4 {[%clk 0:00:06]} 47. Bxf2 {[%clk 0:00:02]}  Bxe2 {[%clk 0:00:06]} 48. b6 {[%clk 0:00:03]}  Ba6 {[%clk 0:00:07]} 49. Bc5 {[%clk 0:00:02]}  Kf7 {[%clk 0:00:07]} 50. Kg1 {[%clk 0:00:03]}  Kg6 {[%clk 0:00:07]} 51. Kf2 {[%clk 0:00:04]}  e5 {[%clk 0:00:07]} 52. Ke1 {[%clk 0:00:04]}  e4 {[%clk 0:00:07]} 53. Kd2 {[%clk 0:00:04]}  f4 {[%clk 0:00:08]} 54. gxf4 {[%clk 0:00:04]}  gxf4 {[%clk 0:00:09]} 55. Bd6 {[%clk 0:00:03]}  e3+ {[%clk 0:00:09]} 0-1


[Site "https://www.chess.com"]